[Event "Titled Tuesday Blitz September 27 Early 2022"]
[White "Skuhala, Barbara"]
[Black "Roque Sola, Gisela"]
[WhiteFideId "14605465"]
[BlackFideId "5120241"]
[WhiteElo "2155"]
[BlackElo "1845"]
[Result "1-0"]
[Round "04"]
[TimeControl "180+1"]
[Date "2022.09.27"]
[WhiteClock "0:01:30"]
[BlackClock "0:00:12"]

1. e4 {[%clk 0:02:54]}  c5 {[%clk 0:02:58]} 2. Nf3 {[%clk 0:02:43]}  Nc6 {[%clk 0:02:58]} 3. d4 {[%clk 0:02:40]}  cxd4 {[%clk 0:02:58]} 4. Nxd4 {[%clk 0:02:41]}  e5 {[%clk 0:02:54]} 5. Nb3 {[%clk 0:02:41]}  Be7 {[%clk 0:02:44]} 6. Nc3 {[%clk 0:02:40]}  d6 {[%clk 0:02:38]} 7. Be3 {[%clk 0:02:37]}  f5 {[%clk 0:02:35]} 8. f3 {[%clk 0:02:33]}  Nf6 {[%clk 0:02:34]} 9. Qd2 {[%clk 0:02:33]}  f4 {[%clk 0:02:32]} 10. Bf2 {[%clk 0:02:33]}  Be6 {[%clk 0:02:26]} 11. O-O-O {[%clk 0:02:33]}  a6 {[%clk 0:02:23]} 12. g3 {[%clk 0:02:32]}  fxg3 {[%clk 0:02:17]} 13. hxg3 {[%clk 0:02:32]}  b5 {[%clk 0:02:16]} 14. Be2 {[%clk 0:02:31]}  Rc8 {[%clk 0:02:09]} 15. Kb1 {[%clk 0:02:30]}  O-O {[%clk 0:01:54]} 16. Be3 {[%clk 0:02:28]}  b4 {[%clk 0:01:46]} 17. Nd5 {[%clk 0:02:27]}  Bxd5 {[%clk 0:01:44]} 18. exd5 {[%clk 0:02:25]}  Na5 {[%clk 0:01:41]} 19. f4 {[%clk 0:02:25]}  exf4 {[%clk 0:01:32]} 20. gxf4 {[%clk 0:02:22]}  Nxb3 {[%clk 0:01:32]} 21. axb3 {[%clk 0:02:22]}  Qa5 {[%clk 0:01:23]} 22. Bd4 {[%clk 0:02:20]}  Qxd5 {[%clk 0:00:59]} 23. Bc4 {[%clk 0:02:16]}  Rxc4 {[%clk 0:01:00]} 24. bxc4 {[%clk 0:02:15]}  Qxc4 {[%clk 0:01:00]} 25. Bxf6 {[%clk 0:02:14]}  Rxf6 {[%clk 0:00:50]} 26. Rde1 {[%clk 0:02:02]}  Bf8 {[%clk 0:00:47]} 27. Qh2 {[%clk 0:01:58]}  Rh6 {[%clk 0:00:45]} 28. Qf2 {[%clk 0:01:55]}  Rf6 {[%clk 0:00:43]} 29. f5 {[%clk 0:01:54]}  b3 {[%clk 0:00:41]} 30. cxb3 {[%clk 0:01:54]}  Qxb3 {[%clk 0:00:36]} 31. Rhf1 {[%clk 0:01:54]}  Qd3+ {[%clk 0:00:35]} 32. Qc2 {[%clk 0:01:53]}  Qb5 {[%clk 0:00:31]} 33. Rf2 {[%clk 0:01:49]}  d5 {[%clk 0:00:30]} 34. Re6 {[%clk 0:01:48]}  Qc4 {[%clk 0:00:22]} 35. Qxc4 {[%clk 0:01:45]}  dxc4 {[%clk 0:00:23]} 36. Rxf6 {[%clk 0:01:45]}  gxf6 {[%clk 0:00:23]} 37. Kc2 {[%clk 0:01:45]}  Kf7 {[%clk 0:00:19]} 38. Kc3 {[%clk 0:01:43]}  Bc5 {[%clk 0:00:17]} 39. Rh2 {[%clk 0:01:42]}  Bd6 {[%clk 0:00:17]} 40. Rxh7+ {[%clk 0:01:41]}  Kg8 {[%clk 0:00:17]} 41. Ra7 {[%clk 0:01:38]}  Be5+ {[%clk 0:00:17]} 42. Kc2 {[%clk 0:01:38]}  a5 {[%clk 0:00:16]} 43. Rxa5 {[%clk 0:01:37]}  Kg7 {[%clk 0:00:16]} 44. Rc5 {[%clk 0:01:37]}  Kh6 {[%clk 0:00:16]} 45. Rxc4 {[%clk 0:01:33]}  Kg5 {[%clk 0:00:16]} 46. b4 {[%clk 0:01:33]}  Kxf5 {[%clk 0:00:16]} 47. b5 {[%clk 0:01:33]}  Ke6 {[%clk 0:00:16]} 48. b6 {[%clk 0:01:34]}  Kd5 {[%clk 0:00:16]} 49. Rc8 {[%clk 0:01:33]}  f5 {[%clk 0:00:12]} 50. b7 {[%clk 0:01:33]}  f4 {[%clk 0:00:11]} 51. b8=Q {[%clk 0:01:33]}  Bxb8 {[%clk 0:00:12]} 52. Rxb8 {[%clk 0:01:33]}  Ke4 {[%clk 0:00:12]} 53. Kd2 {[%clk 0:01:34]}  Kf3 {[%clk 0:00:12]} 54. Ke1 {[%clk 0:01:33]}  Kg2 {[%clk 0:00:12]} 55. Rg8+ {[%clk 0:01:32]}  Kh2 {[%clk 0:00:12]} 56. Kf2 {[%clk 0:01:30]}  Kh1 {[%clk 0:00:12]} 57. Rh8# {[%clk 0:01:30]} 1-0


[Site "https://www.chess.com"]

[Event "Titled Tuesday Blitz September 27 Early 2022"]
[White "Sukandar, Irine Kharisma"]
[Black "Jean Louis, Marckens"]
[WhiteFideId "7101937"]
[BlackFideId "11900270"]
[WhiteElo "2284"]
[BlackElo "2031"]
[Result "0-1"]
[Round "04"]
[TimeControl "180+1"]
[Date "2022.09.27"]
[WhiteClock "0:00:02"]
[BlackClock "0:00:48"]

1. d4 {[%clk 0:03:00]}  e6 {[%clk 0:02:51]} 2. c4 {[%clk 0:03:00]}  d5 {[%clk 0:02:48]} 3. Nc3 {[%clk 0:02:54]}  Nf6 {[%clk 0:02:48]} 4. Nf3 {[%clk 0:02:53]}  Bb4 {[%clk 0:02:47]} 5. Qa4+ {[%clk 0:02:39]}  Nc6 {[%clk 0:02:46]} 6. e3 {[%clk 0:02:39]}  O-O {[%clk 0:02:46]} 7. Bd3 {[%clk 0:02:26]}  a6 {[%clk 0:02:39]} 8. Qc2 {[%clk 0:02:21]}  h6 {[%clk 0:02:40]} 9. O-O {[%clk 0:02:20]}  dxc4 {[%clk 0:02:40]} 10. Bxc4 {[%clk 0:02:19]}  b5 {[%clk 0:02:39]} 11. Bd3 {[%clk 0:02:19]}  Bb7 {[%clk 0:02:39]} 12. Ne4 {[%clk 0:02:12]}  Be7 {[%clk 0:02:28]} 13. a3 {[%clk 0:02:10]}  Na5 {[%clk 0:02:19]} 14. Nxf6+ {[%clk 0:02:02]}  Bxf6 {[%clk 0:02:19]} 15. Bd2 {[%clk 0:02:03]}  Nc4 {[%clk 0:02:10]} 16. Bxc4 {[%clk 0:01:57]}  bxc4 {[%clk 0:02:10]} 17. Qxc4 {[%clk 0:01:57]}  Bd5 {[%clk 0:02:10]} 18. Qe2 {[%clk 0:01:55]}  c5 {[%clk 0:02:09]} 19. Bc3 {[%clk 0:01:16]}  cxd4 {[%clk 0:02:03]} 20. Nxd4 {[%clk 0:01:11]}  Rc8 {[%clk 0:01:58]} 21. Rfd1 {[%clk 0:01:08]}  Qb6 {[%clk 0:01:58]} 22. e4 {[%clk 0:01:02]}  Ba8 {[%clk 0:01:57]} 23. e5 {[%clk 0:00:57]}  Be7 {[%clk 0:01:56]} 24. Rac1 {[%clk 0:00:54]}  Rfd8 {[%clk 0:01:54]} 25. Nc2 {[%clk 0:00:47]}  Qb7 {[%clk 0:01:48]} 26. Qg4 {[%clk 0:00:43]}  Qb3 {[%clk 0:01:41]} 27. Ne3 {[%clk 0:00:31]}  Rxd1+ {[%clk 0:01:38]} 28. Qxd1 {[%clk 0:00:30]}  Qb7 {[%clk 0:01:37]} 29. Bb4 {[%clk 0:00:23]}  Rd8 {[%clk 0:01:30]} 30. Qe1 {[%clk 0:00:18]}  Bg5 {[%clk 0:01:29]} 31. Qe2 {[%clk 0:00:05]}  Qe4 {[%clk 0:01:21]} 32. Bd6 {[%clk 0:00:04]}  Qb7 {[%clk 0:01:04]} 33. Re1 {[%clk 0:00:03]}  Rc8 {[%clk 0:01:04]} 34. Qg4 {[%clk 0:00:02]}  Qxb2 {[%clk 0:01:00]} 35. h4 {[%clk 0:00:01]}  Bxe3 {[%clk 0:00:54]} 36. Rxe3 {[%clk 0:00:02]}  Rc1+ {[%clk 0:00:48]} 37. Kh2 {[%clk 0:00:02]}  Qxf2 {[%clk 0:00:48]} 0-1


[Site "https://www.chess.com"]

[Event "Titled Tuesday Blitz September 27 Early 2022"]
[White "Taboas Rodriguez, Daniel"]
[Black "Bortnyk, Mykola"]
[WhiteFideId "2208466"]
[BlackFideId "14120836"]
[WhiteElo "2429"]
[BlackElo "2582"]
[Result "0-1"]
[Round "04"]
[TimeControl "180+1"]
[Date "2022.09.27"]
[WhiteClock "0:00:54"]
[BlackClock "0:01:23"]

1. d4 {[%clk 0:03:00]}  Nf6 {[%clk 0:02:59]} 2. Nf3 {[%clk 0:03:00]}  e6 {[%clk 0:03:00]} 3. c4 {[%clk 0:03:00]}  b6 {[%clk 0:02:57]} 4. Nc3 {[%clk 0:03:00]}  d5 {[%clk 0:02:49]} 5. cxd5 {[%clk 0:02:59]}  exd5 {[%clk 0:02:49]} 6. Bg5 {[%clk 0:02:59]}  Be7 {[%clk 0:02:46]} 7. e3 {[%clk 0:02:59]}  O-O {[%clk 0:02:43]} 8. Bd3 {[%clk 0:02:52]}  Bb7 {[%clk 0:02:43]} 9. O-O {[%clk 0:02:52]}  c5 {[%clk 0:02:43]} 10. Qc2 {[%clk 0:02:51]}  h6 {[%clk 0:02:40]} 11. Bxf6 {[%clk 0:02:47]}  Bxf6 {[%clk 0:02:40]} 12. dxc5 {[%clk 0:02:47]}  bxc5 {[%clk 0:02:41]} 13. Rfd1 {[%clk 0:02:47]}  Nd7 {[%clk 0:02:26]} 14. Bf5 {[%clk 0:02:17]}  Nb6 {[%clk 0:02:22]} 15. Rac1 {[%clk 0:02:17]}  Qe7 {[%clk 0:02:14]} 16. Re1 {[%clk 0:02:00]}  Rfd8 {[%clk 0:02:12]} 17. b3 {[%clk 0:02:00]}  g6 {[%clk 0:02:05]} 18. Bd3 {[%clk 0:01:57]}  Rac8 {[%clk 0:01:56]} 19. Ne2 {[%clk 0:01:55]}  c4 {[%clk 0:01:55]} 20. bxc4 {[%clk 0:01:54]}  dxc4 {[%clk 0:01:55]} 21. Bxg6 {[%clk 0:01:51]}  fxg6 {[%clk 0:01:54]} 22. Qxg6+ {[%clk 0:01:47]}  Qg7 {[%clk 0:01:55]} 23. Qh5 {[%clk 0:01:45]}  Qf7 {[%clk 0:01:28]} 24. Qxh6 {[%clk 0:01:33]}  Bxf3 {[%clk 0:01:26]} 25. gxf3 {[%clk 0:01:34]}  Qg7+ {[%clk 0:01:26]} 26. Qxg7+ {[%clk 0:01:34]}  Kxg7 {[%clk 0:01:27]} 27. Nf4 {[%clk 0:01:33]}  Rd2 {[%clk 0:01:26]} 28. a4 {[%clk 0:01:23]}  Bb2 {[%clk 0:01:25]} 29. Rcd1 {[%clk 0:01:19]}  c3 {[%clk 0:01:23]} 30. Nd3 {[%clk 0:01:04]}  Rxd1 {[%clk 0:01:19]} 31. Rxd1 {[%clk 0:01:03]}  c2 {[%clk 0:01:20]} 32. Re1 {[%clk 0:01:02]}  c1=Q {[%clk 0:01:20]} 33. Nxc1 {[%clk 0:01:03]}  Rxc1 {[%clk 0:01:21]} 34. Rxc1 {[%clk 0:00:59]}  Bxc1 {[%clk 0:01:22]} 35. a5 {[%clk 0:01:00]}  Nd5 {[%clk 0:01:20]} 36. f4 {[%clk 0:00:56]}  Bd2 {[%clk 0:01:20]} 37. a6 {[%clk 0:00:55]}  Nc7 {[%clk 0:01:20]} 38. Kg2 {[%clk 0:00:56]}  Nxa6 {[%clk 0:01:21]} 39. Kf3 {[%clk 0:00:56]}  Nc5 {[%clk 0:01:21]} 40. Ke2 {[%clk 0:00:56]}  Bb4 {[%clk 0:01:20]} 41. Kd1 {[%clk 0:00:50]}  a5 {[%clk 0:01:20]} 42. Kc2 {[%clk 0:00:51]}  a4 {[%clk 0:01:20]} 43. Kb2 {[%clk 0:00:51]}  Nd3+ {[%clk 0:01:20]} 44. Kc2 {[%clk 0:00:51]}  Nxf2 {[%clk 0:01:20]} 45. h4 {[%clk 0:00:51]}  Ng4 {[%clk 0:01:20]} 46. Kd3 {[%clk 0:00:51]}  a3 {[%clk 0:01:20]} 47. Kc2 {[%clk 0:00:51]}  Nxe3+ {[%clk 0:01:20]} 48. Kb3 {[%clk 0:00:52]}  Ng2 {[%clk 0:01:18]} 49. Ka2 {[%clk 0:00:49]}  Nxf4 {[%clk 0:01:19]} 50. h5 {[%clk 0:00:49]}  Nxh5 {[%clk 0:01:19]} 51. Kb1 {[%clk 0:00:49]}  Kf6 {[%clk 0:01:19]} 52. Ka2 {[%clk 0:00:50]}  Ke5 {[%clk 0:01:20]} 53. Kb1 {[%clk 0:00:51]}  Kd5 {[%clk 0:01:20]} 54. Ka2 {[%clk 0:00:52]}  Kc4 {[%clk 0:01:21]} 55. Kb1 {[%clk 0:00:53]}  Kb3 {[%clk 0:01:22]} 56. Ka1 {[%clk 0:00:53]}  Bc3+ {[%clk 0:01:22]} 57. Kb1 {[%clk 0:00:54]}  a2+ {[%clk 0:01:23]} 0-1


[Site "https://www.chess.com"]

[Event "Titled Tuesday Blitz September 27 Early 2022"]
[White "Terzi, Alexei"]
[Black "Sethuraman, S.P."]
[WhiteFideId "13505076"]
[BlackFideId "5021596"]
[WhiteElo "2031"]
[BlackElo "2425"]
[Result "0-1"]
[Round "04"]
[TimeControl "180+1"]
[Date "2022.09.27"]
[WhiteClock "0:00:10"]
[BlackClock "0:00:08"]

1. e4 {[%clk 0:03:00]}  c5 {[%clk 0:02:59]} 2. Nc3 {[%clk 0:03:00]}  Nc6 {[%clk 0:02:58]} 3. Bb5 {[%clk 0:03:00]}  Nd4 {[%clk 0:02:58]} 4. Nf3 {[%clk 0:03:00]}  e6 {[%clk 0:02:57]} 5. Nxd4 {[%clk 0:02:57]}  cxd4 {[%clk 0:02:55]} 6. Ne2 {[%clk 0:02:56]}  Qg5 {[%clk 0:02:37]} 7. Nxd4 {[%clk 0:02:45]}  Qc5 {[%clk 0:01:49]} 8. c3 {[%clk 0:02:32]}  e5 {[%clk 0:01:48]} 9. b4 {[%clk 0:02:10]}  Qb6 {[%clk 0:01:48]} 10. O-O {[%clk 0:01:44]}  exd4 {[%clk 0:01:47]} 11. Bc4 {[%clk 0:01:30]}  Nf6 {[%clk 0:01:22]} 12. e5 {[%clk 0:01:25]}  d5 {[%clk 0:01:15]} 13. exd6 {[%clk 0:01:04]}  Bxd6 {[%clk 0:01:13]} 14. Re1+ {[%clk 0:00:57]}  Kf8 {[%clk 0:01:10]} 15. h3 {[%clk 0:00:48]}  Bd7 {[%clk 0:01:05]} 16. Qb3 {[%clk 0:00:46]}  Re8 {[%clk 0:00:57]} 17. Bb2 {[%clk 0:00:43]}  dxc3 {[%clk 0:00:46]} 18. Rxe8+ {[%clk 0:00:31]}  Bxe8 {[%clk 0:00:39]} 19. Qxc3 {[%clk 0:00:20]}  Qxb4 {[%clk 0:00:38]} 20. Qc2 {[%clk 0:00:20]}  Ba4 {[%clk 0:00:27]} 21. Qc1 {[%clk 0:00:20]}  Bc6 {[%clk 0:00:25]} 22. a3 {[%clk 0:00:16]}  Qc5 {[%clk 0:00:23]} 23. Qf1 {[%clk 0:00:13]}  h5 {[%clk 0:00:20]} 24. Re1 {[%clk 0:00:13]}  Rh6 {[%clk 0:00:20]} 25. Re3 {[%clk 0:00:12]}  Rg6 {[%clk 0:00:19]} 26. g3 {[%clk 0:00:11]}  h4 {[%clk 0:00:16]} 27. Kh2 {[%clk 0:00:09]}  hxg3+ {[%clk 0:00:16]} 28. fxg3 {[%clk 0:00:10]}  Kg8 {[%clk 0:00:12]} 29. Qf2 {[%clk 0:00:10]}  Bxg3+ {[%clk 0:00:09]} 30. Qxg3 {[%clk 0:00:08]}  Rxg3 {[%clk 0:00:09]} 31. Rxg3 {[%clk 0:00:09]}  Qxc4 {[%clk 0:00:08]} 32. Bxf6 {[%clk 0:00:10]}  Qe2+ {[%clk 0:00:08]} 33. Kg1 {[%clk 0:00:10]}  Qe1+ {[%clk 0:00:08]} 34. Kh2 {[%clk 0:00:11]}  Qf2+ {[%clk 0:00:08]} 35. Rg2 {[%clk 0:00:10]}  Qxg2# {[%clk 0:00:08]} 0-1


[Site "https://www.chess.com"]

[Event "Titled Tuesday Blitz September 27 Early 2022"]
[White "Timofeev, Artyom"]
[Black "Malek, Jan"]
[WhiteFideId "4140419"]
[BlackFideId "21864080"]
[WhiteElo "2579"]
[BlackElo "2172"]
[Result "1-0"]
[Round "04"]
[TimeControl "180+1"]
[Date "2022.09.27"]
[WhiteClock "0:00:08"]
[BlackClock "0:00:03"]

1. e4 {[%clk 0:03:00]}  e5 {[%clk 0:02:56]} 2. Nf3 {[%clk 0:03:00]}  Nc6 {[%clk 0:02:57]} 3. Bb5 {[%clk 0:02:59]}  a6 {[%clk 0:02:56]} 4. Ba4 {[%clk 0:03:00]}  Nf6 {[%clk 0:02:56]} 5. d3 {[%clk 0:02:59]}  b5 {[%clk 0:02:55]} 6. Bb3 {[%clk 0:02:59]}  Bc5 {[%clk 0:02:55]} 7. O-O {[%clk 0:02:57]}  d6 {[%clk 0:02:56]} 8. c3 {[%clk 0:02:56]}  O-O {[%clk 0:02:55]} 9. h3 {[%clk 0:02:56]}  Bb6 {[%clk 0:02:55]} 10. Nbd2 {[%clk 0:02:53]}  Ne7 {[%clk 0:02:53]} 11. Re1 {[%clk 0:02:52]}  Ng6 {[%clk 0:02:53]} 12. Nf1 {[%clk 0:02:52]}  c5 {[%clk 0:02:53]} 13. Ng3 {[%clk 0:02:51]}  Be6 {[%clk 0:02:53]} 14. Be3 {[%clk 0:02:47]}  c4 {[%clk 0:02:34]} 15. Bc2 {[%clk 0:02:47]}  Bxe3 {[%clk 0:02:32]} 16. Rxe3 {[%clk 0:02:46]}  cxd3 {[%clk 0:02:31]} 17. Bxd3 {[%clk 0:02:46]}  Nf4 {[%clk 0:02:30]} 18. Bf1 {[%clk 0:02:46]}  Qb6 {[%clk 0:02:24]} 19. Ne2 {[%clk 0:02:36]}  Nxe2+ {[%clk 0:02:00]} 20. Bxe2 {[%clk 0:02:30]}  h6 {[%clk 0:01:58]} 21. Qe1 {[%clk 0:02:26]}  Rfd8 {[%clk 0:01:54]} 22. a3 {[%clk 0:02:20]}  a5 {[%clk 0:01:54]} 23. Rd1 {[%clk 0:02:19]}  Bb3 {[%clk 0:01:51]} 24. Rd2 {[%clk 0:02:17]}  Rac8 {[%clk 0:01:42]} 25. Bd1 {[%clk 0:02:17]}  Be6 {[%clk 0:01:36]} 26. Bc2 {[%clk 0:01:56]}  b4 {[%clk 0:01:33]} 27. cxb4 {[%clk 0:01:45]}  axb4 {[%clk 0:01:34]} 28. Kh2 {[%clk 0:01:38]}  Nd7 {[%clk 0:00:58]} 29. Bb3 {[%clk 0:01:21]}  bxa3 {[%clk 0:00:32]} 30. Bxe6 {[%clk 0:01:20]}  axb2 {[%clk 0:00:27]} 31. Ba2 {[%clk 0:01:19]}  Rc1 {[%clk 0:00:21]} 32. Rd1 {[%clk 0:01:19]}  Rdc8 {[%clk 0:00:12]} 33. Rb3 {[%clk 0:01:18]}  Rxd1 {[%clk 0:00:11]} 34. Qxd1 {[%clk 0:01:15]}  Qxf2 {[%clk 0:00:11]} 35. Qe1 {[%clk 0:00:53]}  Rc2 {[%clk 0:00:06]} 36. Qxf2 {[%clk 0:00:51]}  Rxf2 {[%clk 0:00:07]} 37. Kg3 {[%clk 0:00:32]}  Rc2 {[%clk 0:00:06]} 38. Ne1 {[%clk 0:00:30]}  Re2 {[%clk 0:00:05]} 39. Nd3 {[%clk 0:00:29]}  Rxe4 {[%clk 0:00:05]} 40. Nxb2 {[%clk 0:00:28]}  Rf4 {[%clk 0:00:03]} 41. Nd3 {[%clk 0:00:26]}  Rf6 {[%clk 0:00:03]} 42. Rb7 {[%clk 0:00:25]}  Nf8 {[%clk 0:00:02]} 43. Nb4 {[%clk 0:00:24]}  g5 {[%clk 0:00:02]} 44. Nd5 {[%clk 0:00:24]}  Rf1 {[%clk 0:00:03]} 45. Ne3 {[%clk 0:00:20]}  Rf4 {[%clk 0:00:02]} 46. Kh2 {[%clk 0:00:17]}  Kg7 {[%clk 0:00:02]} 47. Bd5 {[%clk 0:00:16]}  Rf6 {[%clk 0:00:02]} 48. g4 {[%clk 0:00:14]}  Rf4 {[%clk 0:00:01]} 49. Nf5+ {[%clk 0:00:14]}  Kh8 {[%clk 0:00:02]} 50. Rxf7 {[%clk 0:00:13]}  Ng6 {[%clk 0:00:03]} 51. Kg3 {[%clk 0:00:12]}  Ra4 {[%clk 0:00:02]} 52. Rd7 {[%clk 0:00:11]}  Ra3+ {[%clk 0:00:02]} 53. Kf2 {[%clk 0:00:11]}  Nf4 {[%clk 0:00:03]} 54. Rd8+ {[%clk 0:00:07]}  Kh7 {[%clk 0:00:03]} 55. Bg8+ {[%clk 0:00:08]}  Kg6 {[%clk 0:00:03]} 56. Rxd6+ {[%clk 0:00:08]} 1-0


[Site "https://www.chess.com"]

[Event "Titled Tuesday Blitz September 27 Early 2022"]
[White "Tologon tegin, Semetei"]
[Black "Zilleruelo Irizarry, Diego"]
[WhiteFideId "13800574"]
[BlackFideId "3101460"]
[WhiteElo "2174"]
[BlackElo "1998"]
[Result "0-1"]
[Round "04"]
[TimeControl "180+1"]
[Date "2022.09.27"]
[WhiteClock "0:00:31"]
[BlackClock "0:00:52"]

1. Nf3 {[%clk 0:03:00]}  d5 {[%clk 0:02:59]} 2. g3 {[%clk 0:02:58]}  Nf6 {[%clk 0:03:00]} 3. Bg2 {[%clk 0:02:59]}  e6 {[%clk 0:03:00]} 4. b3 {[%clk 0:02:58]}  Be7 {[%clk 0:03:00]} 5. Bb2 {[%clk 0:02:59]}  O-O {[%clk 0:03:01]} 6. c4 {[%clk 0:03:00]}  c6 {[%clk 0:03:00]} 7. O-O {[%clk 0:02:59]}  b6 {[%clk 0:02:59]} 8. d4 {[%clk 0:02:59]}  Bb7 {[%clk 0:02:59]} 9. Nc3 {[%clk 0:02:59]}  Nbd7 {[%clk 0:02:59]} 10. e3 {[%clk 0:02:59]}  Rc8 {[%clk 0:02:59]} 11. Qe2 {[%clk 0:02:59]}  Qc7 {[%clk 0:02:59]} 12. Rac1 {[%clk 0:02:58]}  Qb8 {[%clk 0:02:56]} 13. Rfd1 {[%clk 0:02:58]}  Rfd8 {[%clk 0:02:55]} 14. e4 {[%clk 0:02:54]}  Nxe4 {[%clk 0:02:55]} 15. Nxe4 {[%clk 0:02:53]}  dxe4 {[%clk 0:02:56]} 16. Qxe4 {[%clk 0:02:54]}  c5 {[%clk 0:02:56]} 17. Qe3 {[%clk 0:02:50]}  Bf6 {[%clk 0:02:53]} 18. Ne5 {[%clk 0:02:37]}  Bxg2 {[%clk 0:02:53]} 19. Nxd7 {[%clk 0:02:26]}  Rxd7 {[%clk 0:02:51]} 20. Kxg2 {[%clk 0:02:25]}  Rcd8 {[%clk 0:02:47]} 21. Rd3 {[%clk 0:02:16]}  cxd4 {[%clk 0:02:45]} 22. Qe4 {[%clk 0:02:15]}  Qb7 {[%clk 0:02:41]} 23. Qxb7 {[%clk 0:02:14]}  Rxb7 {[%clk 0:02:42]} 24. f4 {[%clk 0:02:13]}  Rbd7 {[%clk 0:02:26]} 25. Rcd1 {[%clk 0:02:12]}  h5 {[%clk 0:02:23]} 26. Re1 {[%clk 0:02:10]}  g6 {[%clk 0:02:21]} 27. Kf3 {[%clk 0:02:10]}  Kf8 {[%clk 0:02:18]} 28. Ke4 {[%clk 0:02:10]}  Bg7 {[%clk 0:02:15]} 29. Red1 {[%clk 0:01:52]}  f5+ {[%clk 0:02:01]} 30. Kf3 {[%clk 0:01:52]}  e5 {[%clk 0:01:57]} 31. fxe5 {[%clk 0:01:52]}  Bxe5 {[%clk 0:01:58]} 32. Ba3+ {[%clk 0:01:50]}  Kf7 {[%clk 0:01:56]} 33. c5 {[%clk 0:01:51]}  bxc5 {[%clk 0:01:51]} 34. Bxc5 {[%clk 0:01:50]}  h4 {[%clk 0:01:32]} 35. b4 {[%clk 0:01:43]}  hxg3 {[%clk 0:01:29]} 36. hxg3 {[%clk 0:01:42]}  g5 {[%clk 0:01:29]} 37. g4 {[%clk 0:01:39]}  Kf6 {[%clk 0:01:21]} 38. gxf5 {[%clk 0:01:37]}  Kxf5 {[%clk 0:01:22]} 39. a4 {[%clk 0:01:22]}  a6 {[%clk 0:01:21]} 40. Rg1 {[%clk 0:01:17]}  Rh8 {[%clk 0:01:16]} 41. Ke2 {[%clk 0:01:05]}  Rh2+ {[%clk 0:01:08]} 42. Kd1 {[%clk 0:01:05]}  Ke4 {[%clk 0:01:01]} 43. Rb3 {[%clk 0:00:59]}  Bf4 {[%clk 0:00:59]} 44. Re1+ {[%clk 0:00:47]}  Kd5 {[%clk 0:00:58]} 45. Re2 {[%clk 0:00:33]}  Rh1+ {[%clk 0:00:52]} 46. Kc2 {[%clk 0:00:33]}  Kc4 {[%clk 0:00:53]} 47. Rd3 {[%clk 0:00:32]}  Rc1+ {[%clk 0:00:52]} 48. Kb2 {[%clk 0:00:31]}  Kxd3 {[%clk 0:00:52]} 0-1


[Site "https://www.chess.com"]